fUSD/lending_fUSD_20251115
["ID","MTS","AMOUNT","RATE_DAILY","PERIOD"]
[394065476,1763241046701,-300.0,0.00041411,2]
[394065478,1763241046710,-150.0,0.00041419,13]
[394065479,1763241046719,-162.989975,0.0004142,10]
[394065480,1763241046728,-162.989975,0.0004142,10]
[394065481,1763241046737,-162.989975,0.0004142,10]
[394065482,1763241046746,-162.989975,0.0004142,10]
[394065483,1763241046755,-152.94776,0.0004142,120]
[394065484,1763241046765,-500.0,0.0004142,120]
[394065485,1763241046774,-151.0,0.0004142,15]
[394065486,1763241046783,-151.0,0.0004142,15]
[394065487,1763241046792,-150.0,0.0004142,20]
[394065488,1763241046802,-151.0,0.0004142,120]
[394065489,1763241046811,-151.0,0.0004142,120]
[394065490,1763241046820,-151.0,0.0004142,120]
[394065491,1763241046829,-151.0,0.0004142,120]
[394065492,1763241046838,-151.0,0.0004142,120]
[394065493,1763241046847,-252.084824,0.0004142,45]
[394065495,1763241046856,-252.084824,0.0004142,45]
[394065496,1763241046865,-252.084824,0.0004142,45]
[394065497,1763241046874,-252.084824,0.0004142,45]
[394065498,1763241046883,-151.0,0.0004142,120]
[394065499,1763241046893,-284.25324,0.0004142,120]
[394065500,1763241046902,-151.0,0.0004142,120]
[394065501,1763241046911,-284.25324,0.0004142,120]
[394065502,1763241046921,-284.25324,0.0004142,120]
[394065503,1763241046930,-284.25324,0.0004142,120]
[394065504,1763241046939,-151.0,0.0004142,120]
[394065505,1763241046948,-1348.898314,0.0004142,28]
[394065506,1763241046957,-1348.898314,0.0004142,28]
[394065507,1763241046966,-1348.898314,0.0004142,28]
[394065508,1763241046975,-1348.898314,0.0004142,28]
[394065509,1763241046985,-151.0,0.0004142,120]
[394065510,1763241046994,-151.0,0.0004142,120]
[394065511,1763241047003,-151.0,0.0004142,120]
[394065512,1763241047012,-300.0,0.00041427,2]
[394065513,1763241047021,-555.32802148,0.00041429,60]
[394065514,1763241047030,-500.0,0.00041429,2]
[394065515,1763241047040,-500.0,0.00041429,2]
[394065516,1763241047049,-500.0,0.00041429,2]
[394065517,1763241047058,-150.0,0.00041429,7]
[394065518,1763241047067,-162.989975,0.0004143,10]
[394065519,1763241047076,-162.989975,0.0004143,10]
[394065520,1763241047086,-162.989975,0.0004143,10]
[394065521,1763241047096,-162.989975,0.0004143,10]
[394065522,1763241047105,-151.0,0.0004143,15]
[394065523,1763241047114,-172.793134,0.0004143,15]
[394065524,1763241047123,-151.0,0.0004143,120]
[394065525,1763241047132,-151.0,0.0004143,120]
[394065526,1763241047142,-151.0,0.0004143,120]
[394065527,1763241047151,-151.0,0.0004143,120]
[394065528,1763241047160,-500.0,0.00041439,2]
[394065529,1763241047169,-500.0,0.00041439,2]
[394065530,1763241047178,-500.0,0.00041439,2]
[394065531,1763241047187,-500.0,0.00041439,2]
[394065532,1763241047196,-500.0,0.00041439,2]
[394065533,1763241047206,-357.55,0.00041439,2]
[394065534,1763241047215,-511.67591007,0.00041439,60]
[394065535,1763241047225,-666.0,0.00041439,30]
[394065536,1763241047233,-150.0,0.00041439,2]
[394065537,1763241047243,-209460.57820376,0.0004144,27]
[394065538,1763241047507,-657.29966883,0.0004144,27]
[394065539,1763241047517,-337.11333192,0.0004144,30]
[394065540,1763241047530,-328.88666808,0.0004144,30]
[394065541,1763241047539,-191.35555694,0.0004144,2]
[394065542,1763241047630,-560.0,0.00020094,2]
[394065543,1763241047640,-560.0,0.00023094,2]
[394065544,1763241047649,-560.0,0.00026094,2]
[394065545,1763241047658,-560.0,0.00029094,2]
[394065546,1763241047667,-582.21558554,0.00033127,30]
[394065547,1763241047679,-120.60941446,0.00033127,30]
[394065548,1763241047688,-157.228298,0.00033127,31]
[394065549,1763241047698,-157.228298,0.00033127,31]
[394065550,1763241047707,-480.11049454,0.00033127,30]
[394065551,1763241047720,-222.71450546,0.00033127,30]
[394065552,1763241047730,-157.228298,0.00039511,120]
[394065553,1763241047739,-261.09153573,0.00039511,30]
[394065554,1763241047750,-441.73346427,0.00039511,30]
[394065555,1763241047760,-157.228298,0.00039511,120]
[394065556,1763241047769,-702.825,0.00039511,30]
[394065557,1763241047778,-157.228298,0.00041056,120]
[394065558,1763241047787,-702.825,0.00041056,30]
[394065559,1763241047796,-732.69582939,0.0004144,2]
[394065560,1763241047807,-502.7286811,0.0004144,2]
[394065561,1763241047818,-926.039998,0.0004144,2]
[394065562,1763241047829,-1989.00964857,0.0004144,2]
[394065563,1763241047840,-329.0207687,0.0004144,2]
[394065564,1763241047851,-2172.95400006,0.0004144,2]
[394065565,1763241047862,-349949.42262995,0.0004144,2]
[394065566,1763241047873,-6109.72249515,0.0004144,2]
[394065567,1763241047884,-926.43124995,0.0004144,2]
[394065568,1763241047902,-157.228298,0.00041056,120]
[394065569,1763241047912,-347.053942,0.0004144,2]
[394065570,1763241047923,-880.0301178,0.0004144,2]
[394065571,1763241047934,-33821.74515768,0.0004144,2]
[394065572,1763241047950,-702.825,0.00041056,30]
[394065573,1763241047959,-85.47810127,0.0004144,2]
[394065574,1763241048156,-453.1152,0.00033127,30]
[394065575,1763241048167,-249.7098,0.00033127,30]
[394065576,1763241048177,-157.20993,0.00033127,31]
[394065577,1763241048187,-702.825,0.00039511,30]
[394065578,1763241048196,-550.16,0.00040356,2]
[394065579,1763241048206,-317.87863692,0.00041056,30]
[394065580,1763241048459,-384.94636308,0.00041056,30]
[394065581,1763241048470,-300.0,0.00041242,2]
[394065582,1763241048480,-300.0,0.00041247,2]
[394065583,1763241048490,-300.0,0.00041256,2]
[394065584,1763241048499,-300.0,0.00041259,2]
[394065585,1763241048509,-300.0,0.00041273,2]
[394065586,1763241048519,-300.0,0.00041304,2]
[394065587,1763241048528,-300.0,0.00041307,2]
[394065588,1763241048537,-210.50284838,0.0004134,2]
[394065589,1763241048546,-300.0,0.00041341,2]
[394065590,1763241048556,-300.0,0.00041341,2]
[394065591,1763241048565,-300.0,0.00041375,2]
[394065592,1763241048574,-300.0,0.00041388,2]
[394065593,1763241048583,-300.0,0.0004141,2]
[394065594,1763241048593,-300.0,0.00041419,2]
[394065595,1763241048602,-92317.45118606,0.0004144,2]
[394065596,1763241048616,-66657.64910273,0.0004144,2]
[394065597,1763241048627,-25186.3396482,0.0004144,2]
[394065598,1763241048808,-1906.0,0.0004144,2]
[394065599,1763241048819,-1833.50207615,0.0004144,2]
[394065600,1763241048831,-2615.42497289,0.0004144,2]
[394065665,1763241385669,-563.93976649,0.00016597,2]
[394065666,1763241385730,-672.12046702,0.00016597,2]
[394065667,1763241385740,-160.23918297,0.00016597,2]
[394065668,1763241385750,-300.0,0.00016695,2]
[394065669,1763241385759,-103.70058352,0.00016695,2]
[394065671,1763241604364,799.45,0.00013699,2]
[394065677,1763242014475,5000.00021977,0.000162,5]
[394065679,1763242030155,999.0,0.00016563,3]
[394065683,1763242066517,1635.78693257,0.00013,15]
[394065693,1763242119191,11994.70306717,0.00015,3]
[394065694,1763242119217,9200.56,0.00015,3]
[394065695,1763242119243,257340.48759283,0.00015,3]
[394065705,1763242232348,-300.0,0.00016596,2]
[394065706,1763242232358,-300.0,0.00016596,2]
[394065707,1763242232368,-1200.0,0.00016596,2]
[394065708,1763242232379,-550.0,0.00016596,2]
[394065709,1763242232388,-195.0,0.00016596,2]
[394065710,1763242232397,-2500.0,0.00016596,2]
[394065711,1763242232407,-300.0,0.00016596,2]
[394065712,1763242232417,-195.0,0.00016597,2]
[394065713,1763242232426,-17431.60007943,0.00016597,2]
[394065714,1763242232436,-294.03748634,0.00016597,2]
[394065715,1763242232445,-160.23918297,0.00016597,2]
[394065716,1763242232454,-391.47172431,0.00016598,2]
[394065717,1763242232464,-502.20263233,0.00016673,2]
[394065718,1763242232474,-500.0,0.00016673,2]
[394065719,1763242232483,-500.0,0.00016673,2]
[394065720,1763242232492,-500.0,0.00016673,2]
[394065721,1763242232502,-278.41536593,0.00016673,2]
[394065722,1763242232524,-500.0,0.00016673,2]
[394065723,1763242232534,-540.9107369,0.00016696,2]
[394065724,1763242232543,-500.0,0.00016696,2]
[394065725,1763242232553,-167.544,0.00016696,2]
[394065726,1763242232563,-500.0,0.00016696,2]
[394065727,1763242232572,-500.0,0.00016696,2]
[394065728,1763242232582,-500.0,0.00016696,2]
[394065729,1763242232591,-500.0,0.00016696,2]
[394065730,1763242232600,-500.0,0.00016696,2]
[394065731,1763242232610,-500.0,0.00016696,2]
[394065732,1763242232619,-500.0,0.00016696,2]
[394065733,1763242232628,-23332.7108,0.00016697,2]
[394065734,1763242232637,-1000.0,0.00016697,2]
[394065735,1763242232646,-500.0,0.00016796,2]
[394065736,1763242232656,-500.0,0.00016796,2]
[394065737,1763242232665,-500.0,0.00016973,2]
[394065738,1763242232674,-482.77598454,0.00016973,2]
[394065739,1763242232684,-503.61158454,0.00016973,2]
[394065740,1763242232694,-545.21234434,0.00016973,2]
[394065741,1763242232703,-500.0,0.00016973,2]
[394065742,1763242232712,-506.67445187,0.00016973,2]
[394065743,1763242232724,-500.0,0.00016973,2]
[394065744,1763242232733,-500.0,0.00016973,2]
[394065745,1763242232743,-500.0,0.00016973,2]
[394065746,1763242232752,-500.0,0.00016973,2]
[394065747,1763242232761,-235.09790462,0.00016978,2]
[394065748,1763242232770,-294.9,0.0001699,2]
[394065749,1763242232779,-294.9,0.0001699,2]
[394065750,1763242232788,-294.9,0.0001699,2]
[394065751,1763242232797,-294.9,0.0001699,2]
[394065752,1763242232807,-294.9,0.0001699,2]
[394065753,1763242232820,-169.51824297,0.0001699,2]
[394065754,1763242232829,-169.51824297,0.0001699,2]
[394065755,1763242232838,-500.0,0.00016999,2]
[394065756,1763242232848,-154.23820943,0.00016999,2]
[394065757,1763242232858,-191.05761647,0.00016999,2]
[394065758,1763242232867,-187.69966845,0.00016999,2]
[394065759,1763242232876,-177858.69231931,0.00017,2]
[394065760,1763242232889,-1048.876936,0.00017,2]
[394065761,1763242232901,-500.0,0.00017,2]
[394065762,1763242232959,-500.0,0.00016999,2]
[394065763,1763242232970,-251.22142402,0.00016999,2]
[394065764,1763242232979,-112.67857598,0.00017,2]
[394065765,1763242238229,-1000.0,0.00017,2]
[394065766,1763242238241,-884.70037941,0.00017,2]
[394065767,1763242238252,-2200.0,0.00017,2]
[394065768,1763242238286,-3079919.75959745,0.00017,2]
[394065769,1763242238382,-1104.3042,0.00017,2]
[394065770,1763242238426,-1089.98364,0.00017,2]
[394065776,1763242240232,-311.98467859,0.00017,2]
[394065778,1763242240243,-646.53286603,0.00017,2]
[394065779,1763242240254,-6688.80729789,0.00017,2]
[394065780,1763242240265,-10983.6,0.00017,2]
[394065781,1763242240292,-521.74049082,0.00017,2]
[394065782,1763242240303,-454185.66462142,0.00017,2]
[394065783,1763242240312,-715.67637016,0.00017014,2]
[394065784,1763242240322,-537.28131608,0.00017114,2]
[394065785,1763242240331,-1000.0,0.00017221,2]
[394065786,1763242240340,-280.92767857,0.00017221,2]
[394065787,1763242240350,-322.46058965,0.00017221,2]
[394065788,1763242240359,-1000.0,0.00017221,2]
[394065789,1763242240368,-309.66167998,0.00017521,2]
[394065790,1763242240378,-1000.0,0.00017521,2]
[394065791,1763242240388,-824.04214263,0.00017521,2]
[394065792,1763242240397,-506.65983477,0.00017521,2]
[394065793,1763242240406,-1000.0,0.00017521,2]
[394065794,1763242240416,-250.0,0.00017534,2]
[394065795,1763242240425,-935.0,0.00017708,2]
[394065796,1763242240434,-1334.97782505,0.00017768,2]
[394065797,1763242240444,-1023.66106202,0.000179,2]
[394065798,1763242240453,-162.44434899,0.00017973,2]
[394065799,1763242240462,-163.98407721,0.00017973,2]
[394065800,1763242240472,-500.0,0.00017973,2]
[394065801,1763242240481,-500.0,0.00017973,2]
[394065802,1763242240491,-500.0,0.00017973,2]
[394065803,1763242240500,-821626.51986775,0.00018,2]
[394065804,1763242240509,-151.0,0.00018,2]
[394065805,1763242240518,-151.0,0.00018,2]
[394065806,1763242240528,-500.997914,0.00018,2]
[394065807,1763242240538,-169.669524,0.00018,2]
[394065808,1763242240547,-500.997914,0.00018,2]
[394065809,1763242240556,-500.997914,0.00018,2]
[394065810,1763242240566,-500.997914,0.00018,2]
[394065811,1763242240575,-188.737272,0.00018,2]
[394065812,1763242240584,-151.0,0.00018,2]
[394065814,1763242240593,-170.31756,0.00018,2]
[394065833,1763242240757,-188.737272,0.00018,2]
[394065835,1763242240775,-151.0,0.00018,2]
[394065838,1763242240785,-151.0,0.00018,2]
[394065839,1763242240794,-170.31756,0.00018,2]
[394065841,1763242240804,-188.737272,0.00018,2]
[394065843,1763242240813,-170.31756,0.00018,2]
[394065845,1763242240824,-188.737272,0.00018,2]
[394065847,1763242240833,-151.0,0.00018,2]
[394065849,1763242240842,-170.31756,0.00018,2]
[394065851,1763242240851,-151.0,0.00018,2]
[394065853,1763242240861,-151.0,0.00018,2]
[394065854,1763242240870,-151.0,0.00018,2]
[394065855,1763242240879,-151.0,0.00018,2]
[394065856,1763242240889,-151.0,0.00018,2]
[394065857,1763242240899,-151.0,0.00018,2]
[394065858,1763242240908,-156.76694,0.00018,2]
[394065859,1763242240917,-252.409827,0.00018,2]
[394065860,1763242240927,-151.0,0.00018,2]
[394065861,1763242240936,-151.0,0.00018,2]
[394065862,1763242240946,-151.0,0.00018,2]
[394065863,1763242240956,-855.103751,0.00018,2]
[394065864,1763242240966,-473.7554,0.00018,2]
[394065865,1763242240976,-855.103751,0.00018,2]
[394065866,1763242240986,-473.7554,0.00018,2]
[394065867,1763242240995,-151.0,0.00018,2]
[394065868,1763242241004,-855.103751,0.00018,2]
[394065869,1763242241014,-473.7554,0.00018,2]
[394065870,1763242241023,-151.0,0.00018,2]
[394065871,1763242241032,-187.205204,0.00018,2]
[394065873,1763242241041,-473.7554,0.00018,2]
[394065874,1763242241050,-855.103751,0.00018,2]
[394065875,1763242241059,-151.0,0.00018,2]
[394065876,1763242241068,-151.0,0.00018,2]
[394065877,1763242241077,-151.0,0.00018,2]
[394065878,1763242241086,-151.0,0.00018,2]
[394065879,1763242241095,-151.0,0.00018,2]
[394065880,1763242241104,-151.0,0.00018,2]
[394065881,1763242241113,-151.0,0.00018,2]
[394065882,1763242241122,-152.928777,0.00018,2]
[394065883,1763242241131,-163.451954,0.00018,2]
[394065884,1763242241140,-151.0,0.00018,2]
[394065885,1763242241149,-163.451954,0.00018,2]
[394065886,1763242241158,-163.451954,0.00018,2]
[394065887,1763242241167,-151.0,0.00018,2]
[394065888,1763242241177,-163.451954,0.00018,2]
[394065889,1763242241186,-151.0,0.00018,2]
[394065890,1763242241195,-151.0,0.00018,2]
[394065891,1763242241204,-151.0,0.00018,2]
[394065892,1763242241214,-157.455111,0.00018,2]
[394065893,1763242241226,-151.0,0.00018,2]
[394065894,1763242241235,-151.0,0.00018,2]
[394065895,1763242241245,-151.0,0.00018,2]
[394065896,1763242241254,-151.0,0.00018,2]
[394065897,1763242241263,-151.0,0.00018,2]
[394065898,1763242241272,-151.0,0.00018,2]
[394065899,1763242241281,-151.0,0.00018,2]
[394065900,1763242241291,-151.0,0.00018,2]
[394065901,1763242241300,-151.0,0.00018,2]
[394065902,1763242241309,-162.989975,0.00018,2]
[394065903,1763242241318,-151.0,0.00018,2]
[394065904,1763242241328,-162.989975,0.00018,2]
[394065905,1763242241337,-162.989975,0.00018,2]
[394065906,1763242241346,-151.0,0.00018,2]
[394065907,1763242241355,-151.0,0.00018,2]
[394065908,1763242241365,-162.989975,0.00018,2]
[394065909,1763242241374,-171.700862,0.00018,2]
[394065910,1763242241385,-151.0,0.00018,2]
[394065911,1763242241394,-151.0,0.00018,2]
[394065912,1763242241403,-151.0,0.00018,2]
[394065913,1763242241412,-151.0,0.00018,2]
[394065914,1763242241421,-151.0,0.00018,2]
[394065915,1763242241430,-192.34866,0.00018,2]
[394065916,1763242241439,-151.0,0.00018,2]
[394065917,1763242241448,-151.000011,0.00018,2]
[394065918,1763242241457,-151.0,0.00018,2]
[394065919,1763242241466,-151.0,0.00018,2]
[394065920,1763242241477,-151.0,0.00018,2]
[394065921,1763242241486,-151.0,0.00018,2]
[394065922,1763242241496,-151.0,0.00018,2]
[394065923,1763242241505,-151.0,0.00018,2]
[394065924,1763242241514,-151.0,0.00018,2]
[394065925,1763242241523,-178.013643,0.00018,2]
[394065926,1763242241532,-151.0,0.00018,2]
[394065927,1763242241541,-500.0,0.00018068,2]
[394065928,1763242241551,-1500.0,0.00018068,2]
[394065929,1763242241560,-420.0,0.00018134,2]
[394065930,1763242241569,-420.0,0.00018134,2]
[394065931,1763242241579,-1680.0,0.00018224,2]
[394065932,1763242241588,-195.0,0.00018256,2]
[394065933,1763242241597,-193.0,0.00018256,2]
[394065934,1763242241606,-300.0,0.00018256,2]
[394065935,1763242241615,-2500.0,0.00018256,2]
[394065936,1763242241624,-250.0,0.00018256,2]
[394065937,1763242241633,-195.0,0.00018256,2]
[394065938,1763242241642,-218.87434665,0.00018256,2]
[394065939,1763242241651,-250.0,0.00018256,2]
[394065940,1763242241660,-250.0,0.00018256,2]
[394065941,1763242241670,-357.36431197,0.00018256,2]
[394065942,1763242241679,-500.0,0.00018521,2]
[394065943,1763242241688,-500.0,0.00018521,2]
[394065944,1763242241698,-1221.98217018,0.00018616,2]
[394065945,1763242241707,-150.37,0.000188,2]
[394065946,1763242241716,-150.37,0.000188,2]
[394065947,1763242241727,-150.37,0.000188,2]
[394065948,1763242241736,-150.37,0.000188,2]
[394065949,1763242241745,-150.37,0.000188,2]
[394065950,1763242241755,-150.37,0.000188,2]
[394065951,1763242241765,-150.37,0.000188,2]
[394065952,1763242241774,-150.37,0.000188,2]
[394065953,1763242241783,-150.37,0.000188,2]
[394065954,1763242241792,-150.37,0.000188,2]
[394065955,1763242241802,-150.37,0.000188,2]
[394065956,1763242241816,-150.37,0.000188,2]
[394065957,1763242241826,-150.37,0.000188,2]
[394065958,1763242241835,-150.37,0.000188,2]
[394065959,1763242241846,-150.37,0.000188,2]
[394065960,1763242241856,-150.37,0.000188,2]
[394065961,1763242241865,-150.37,0.000188,2]
[394065962,1763242241875,-150.37,0.000188,2]
[394065963,1763242241885,-150.37,0.000188,2]
[394065964,1763242241894,-150.37,0.000188,2]
[394065965,1763242241904,-150.37,0.000188,2]
[394065966,1763242241913,-150.37,0.000188,2]
[394065967,1763242241924,-150.37,0.000188,2]
[394065968,1763242241933,-150.37,0.000188,2]
[394065969,1763242241943,-150.37,0.000188,2]
[394065970,1763242241953,-150.37,0.000188,2]
[394065971,1763242241962,-150.37,0.000188,2]
[394065972,1763242241971,-150.37,0.000188,2]
[394065973,1763242241981,-150.37,0.000188,2]
[394065974,1763242241991,-150.37,0.000188,2]
[394065975,1763242242001,-150.37,0.000188,2]
[394065976,1763242242010,-150.37,0.000188,2]
[394065977,1763242242020,-150.37,0.000188,2]
[394065978,1763242242029,-150.37,0.000188,2]
[394065979,1763242242038,-150.37,0.000188,2]
[394065980,1763242242048,-150.37,0.000188,2]
[394065981,1763242242059,-150.37,0.000188,2]
[394065982,1763242242068,-150.37,0.000188,2]
[394065983,1763242242078,-150.37,0.000188,2]
[394065984,1763242242087,-150.37,0.000188,2]
[394065985,1763242242097,-150.37,0.000188,2]
[394065986,1763242242106,-150.37,0.000188,2]
[394065987,1763242242115,-150.37,0.000188,2]
[394065988,1763242242125,-150.37,0.000188,2]
[394065989,1763242242135,-150.37,0.000188,2]
[394065990,1763242242144,-150.37,0.000188,2]
[394065991,1763242242154,-150.37,0.000188,2]
[394065992,1763242242163,-150.37,0.000188,2]
[394065993,1763242242173,-150.37,0.000188,2]
[394065994,1763242242182,-150.37,0.000188,2]
[394065995,1763242242191,-150.37,0.000188,2]
[394065996,1763242242200,-150.37,0.000188,2]
[394065997,1763242242210,-150.37,0.000188,2]
[394065998,1763242242219,-150.37,0.000188,2]
[394065999,1763242242231,-150.37,0.000188,2]
[394066000,1763242242241,-150.37,0.000188,2]
[394066001,1763242242250,-150.37,0.000188,2]
[394066002,1763242242260,-150.37,0.000188,2]
[394066003,1763242242269,-150.37,0.000188,2]
[394066004,1763242242279,-150.37,0.000188,2]
[394066005,1763242242288,-1589.0,0.00018886,2]
[394066006,1763242242297,-909.90678397,0.00019,2]
[394066007,1763242242306,-354.90817882,0.0001901,7]
[394066008,1763242242315,-218.69296469,0.00019037,2]
[394066009,1763242242325,-150.37,0.00019168,2]
[394066010,1763242242335,-1348.898314,0.00019178,2]
[394066011,1763242242344,-1348.898314,0.00019178,2]
[394066012,1763242242353,-1348.898314,0.00019178,2]
[394066013,1763242242363,-1348.898314,0.00019178,2]
[394066014,1763242242373,-339.97904075,0.00019272,2]
[394066015,1763242242382,-17431.60007936,0.00019346,2]
[394066016,1763242242392,-294.03748631,0.00019346,2]
[394066017,1763242242401,-1730.43454739,0.000195,7]
[394066018,1763242242410,-218.69296469,0.00019548,2]
[394066019,1763242242420,-150.0,0.00019807,2]
[394066020,1763242242429,-587.0,0.00019814,2]
[394066021,1763242242438,-587.0,0.00019814,2]
[394066022,1763242242447,-600.0,0.00019848,2]
[394066023,1763242242457,-1029.44122537,0.0002,2]
[394066024,1763242242466,-1521.22343733,0.0002,2]
[394066025,1763242242477,-1453.32245693,0.0002,5]
[394066026,1763242242486,-1284.49199538,0.0002,2]
[394066027,1763242242495,-2183.04347903,0.0002,3]
[394066028,1763242242504,-1036.78954494,0.0002,2]
[394066029,1763242242514,-2841.23192426,0.0002,2]
[394066030,1763242242523,-150.62753141,0.0002,2]
[394066031,1763242242532,-2351.0,0.00020013,2]
[394066032,1763242242541,-218.69296469,0.00020059,2]
[394066033,1763242242551,-1613.0,0.00020164,2]
[394066034,1763242242560,-799.45,0.00020187,2]
[394066035,1763242242569,-1189.97,0.00020311,2]
[394066036,1763242242578,-1198.44124389,0.000205,2]
[394066037,1763242242588,-151.0,0.00020548,2]
[394066038,1763242242597,-151.0,0.00020548,2]
[394066039,1763242242606,-151.0,0.00020548,2]
[394066040,1763242242615,-151.0,0.00020548,2]
[394066041,1763242242624,-218.69296469,0.0002057,2]
[394066042,1763242242633,-150.37,0.0002099,2]
[394066043,1763242242643,-6353.55687192,0.00021,2]
[394066044,1763242242652,-9374.57069516,0.00021,2]
[394066045,1763242242662,-1183.37938507,0.00021,2]
[394066046,1763242242671,-195.33348379,0.00021,2]
[394066047,1763242242680,-218.91165765,0.00021081,2]
[394066048,1763242242689,-51907.33177504,0.000215,2]
[394066049,1763242242698,-220.29089125,0.000215,2]
[394066050,1763242242707,-823.0,0.00021651,2]
[394066051,1763242242716,-823.0,0.00021651,2]
[394066052,1763242242726,-300.0,0.00021655,2]
[394066053,1763242242735,-166.66,0.00021719,2]
[394066054,1763242242744,-150.37,0.00021767,2]
[394066055,1763242242754,-500.0,0.00021777,2]
[394066056,1763242242763,-501.0,0.00021777,2]
[394066057,1763242242774,-3292.0,0.00021976,2]
[394066058,1763242242783,-150.37,0.0002199,2]
[394066059,1763242242792,-150.37,0.0002199,2]
[394066060,1763242242801,-666.0,0.00021999,2]
[394066061,1763242242812,-126242.02461282,0.00022,4]
[394066062,1763242242829,-160.97,0.00022,2]
[394066063,1763242242839,-623.34,0.00022,7]
[394066064,1763242242848,-17431.60007936,0.00022095,2]
[394066065,1763242242859,-294.03748631,0.00022095,2]
[394066066,1763242242868,-490.31874565,0.000221,2]
[394066067,1763242242877,-238.2504891,0.0002211,2]
[394066068,1763242242888,-166.66,0.00022176,30]
[394066069,1763242242898,-478.96003305,0.00022436,2]
[394066070,1763242242907,-309.06,0.00022438,2]
[394066071,1763242242916,-834.0,0.00022438,2]
[394066072,1763242242925,-1598.0,0.00022438,2]
[394066073,1763242242935,-893.0,0.00022438,2]
[394066074,1763242242944,-1275.0,0.00022438,2]
[394066075,1763242242953,-1190.0,0.00022438,2]
[394066076,1763242242963,-907.0,0.00022438,2]
[394066077,1763242243097,-3430.0,0.00022438,2]
[394066078,1763242243107,-160.132,0.00022438,2]
[394066079,1763242243116,-608.0,0.00022438,2]
[394066080,1763242243124,-3170.0,0.00022438,2]
[394066081,1763242243134,-500.0,0.00022475,2]
[394066082,1763242243143,-877.27,0.00022562,2]
[394066083,1763242243152,-4074.87,0.00022562,2]
[394066084,1763242243161,-166.66,0.00022633,30]
[394066085,1763242243171,-518.61792628,0.0002271,2]
[394066086,1763242243180,-309.06,0.00022712,2]
[394066087,1763242243190,-250.0,0.00022889,2]
[394066088,1763242243199,-309.06,0.00022986,2]
[394066089,1763242243208,-436.06920303,0.00023,2]
[394066090,1763242243218,-998.93786165,0.00023,2]
[394066091,1763242243229,-300.0,0.00023025,2]
[394066092,1763242243240,-166.66,0.0002309,30]
[394066093,1763242243249,-2563.49038718,0.000231,2]
[394066094,1763242243258,-162.81933787,0.00023118,2]
[394066095,1763242243267,-150.0,0.00023195,2]
[394066096,1763242243276,-309.06,0.0002326,2]
[394066097,1763242243286,-150.37,0.00023323,2]
[394066098,1763242243295,-11580.02877845,0.00023333,7]
[394066099,1763242243304,-200.0,0.000235,2]
[394066100,1763242243313,-309.07610184,0.00023534,2]
[394066101,1763242243323,-166.66,0.00023548,30]
[394066102,1763242243332,-1152.0,0.00023657,2]
[394066103,1763242243341,-1152.0,0.00023657,2]
[394066105,1763242243351,-1011.92186501,0.00024,2]
[394066108,1763242243360,-623.34,0.00024,7]